fUST/lending_fUST_20250505
["ID","MTS","AMOUNT","RATE_DAILY","PERIOD"]
[359953156,1746445867419,-358.0,0.00036438,14]
[359953158,1746445867429,-445.34,0.00036438,14]
[359953160,1746445867439,-400.0,0.00036438,14]
[359953162,1746445867448,-1500.0,0.00036438,33]
[359953164,1746445867458,-400.0,0.00036438,14]
[359953166,1746445867467,-810.48,0.00036438,14]
[359953168,1746445867477,-400.0,0.00036438,14]
[359953170,1746445867487,-1328.47,0.00036438,14]
[359953172,1746445867496,-552.28,0.00036438,14]
[359953174,1746445867506,-400.0,0.00036438,14]
[359953176,1746445867515,-400.0,0.00036438,14]
[359953178,1746445867524,-991.14,0.00036438,14]
[359953180,1746445867534,-400.0,0.00036438,14]
[359953182,1746445867543,-1713.06,0.00036438,14]
[359953184,1746445867552,-452.4,0.00036438,14]
[359953186,1746445867561,-407.99,0.00036438,14]
[359953188,1746445867570,-741.51,0.00036438,14]
[359953190,1746445867579,-133.75499779,0.00036438,14]
[359953192,1746445867592,-266.24500221,0.00036438,14]
[359953194,1746445867601,-904.9,0.00036438,14]
[359953196,1746445867610,-400.0,0.00036438,14]
[359953198,1746445867619,-485.78134908,0.00036438,14]
[359953200,1746445867628,-400.0,0.00036438,14]
[359953202,1746445867637,-400.0,0.00036438,14]
[359953204,1746445867647,-400.0,0.00036438,14]
[359953206,1746445867656,-400.0,0.00036438,14]
[359953208,1746445867666,-400.0,0.00036438,14]
[359953210,1746445867675,-400.0,0.00036438,14]
[359953212,1746445867684,-519.40757928,0.00036438,14]
[359953214,1746445867693,-461.76,0.00036438,14]
[359953216,1746445867703,-400.0,0.00036438,14]
[359953218,1746445867712,-400.0,0.00036438,14]
[359953220,1746445867721,-400.0,0.00036438,14]
[359953222,1746445867730,-400.0,0.00036438,14]
[359953224,1746445867739,-400.0,0.00036438,14]
[359953226,1746445867748,-400.0,0.00036438,14]
[359953228,1746445867757,-400.0,0.00036438,14]
[359953230,1746445867766,-400.0,0.00036438,14]
[359953232,1746445867776,-400.0,0.00036438,14]
[359953234,1746445867785,-859.63,0.00036438,14]
[359953236,1746445867794,-400.0,0.00036438,14]
[359953238,1746445867803,-400.0,0.00036438,14]
[359953240,1746445867813,-400.0,0.00036438,14]
[359953242,1746445867822,-400.0,0.00036438,14]
[359953244,1746445867831,-400.0,0.00036438,14]
[359953245,1746445867840,-1047.07,0.00036438,14]
[359953246,1746445867849,-400.0,0.00036438,14]
[359953247,1746445867859,-459.52,0.00036438,14]
[359953248,1746445867867,-440.38,0.00036438,14]
[359953253,1746445867966,-400.0,0.00036438,14]
[359953255,1746445867976,-400.0,0.00036438,14]
[359953257,1746445867985,-847.52,0.00036438,14]
[359953259,1746445867995,-400.0,0.00036438,14]
[359953261,1746445868006,-183.4069939,0.00036438,14]
[359953263,1746445868015,-482.5,0.00036438,14]
[359953265,1746445868025,-584.75,0.00036438,14]
[359953267,1746445868035,-2778.11,0.00036438,2]
[359953269,1746445868045,-400.0,0.00036438,14]
[359953271,1746445868054,-471.15,0.00036438,14]
[359953272,1746445868064,-622.12,0.00036438,14]
[359953274,1746445868073,-547.45,0.00036438,14]
[359953276,1746445868082,-400.0,0.00036438,14]
[359953278,1746445868091,-2823.51,0.00036438,14]
[359953280,1746445868101,-400.0,0.00036438,14]
[359953282,1746445868110,-400.0,0.00036438,14]
[359953284,1746445868120,-400.0,0.00036438,14]
[359953286,1746445868129,-400.0,0.00036438,14]
[359953288,1746445868139,-792.06,0.00036438,14]
[359953290,1746445868148,-594.03,0.00036438,14]
[359953291,1746445868157,-480.93,0.00036438,14]
[359953293,1746445868166,-400.0,0.00036438,14]
[359953295,1746445868176,-400.0,0.00036438,14]
[359953297,1746445868185,-9551.19,0.00036438,14]
[359953299,1746445868195,-400.0,0.00036438,14]
[359953301,1746445868205,-2548.32,0.00036438,14]
[359953303,1746445868215,-677.11,0.00036438,14]
[359953305,1746445868224,-400.0,0.00036438,14]
[359953307,1746445868233,-400.0,0.00036438,14]
[359953309,1746445868243,-400.0,0.00036438,14]
[359953311,1746445868252,-400.0,0.00036438,14]
[359953313,1746445868261,-400.0,0.00036438,14]
[359953314,1746445868270,-400.0,0.00036438,14]
[359953316,1746445868279,-400.0,0.00036438,14]
[359953318,1746445868289,-2738.47452396,0.00036438,14]
[359953321,1746445868302,-790.92547604,0.00036438,14]
[359953323,1746445868312,-400.0,0.00036438,14]
[359953325,1746445868321,-400.0,0.00036438,14]
[359953327,1746445868330,-400.0,0.00036438,14]
[359953329,1746445868339,-400.0,0.00036438,14]
[359953331,1746445868349,-400.0,0.00036438,14]
[359953333,1746445868361,-3496.52,0.00036438,14]
[359953335,1746445868370,-2182.36,0.00036438,14]
[359953336,1746445868380,-1611.18,0.00036438,14]
[359953338,1746445868389,-2637.47,0.00036438,14]
[359953340,1746445868399,-400.0,0.00036438,14]
[359953342,1746445868410,-400.0,0.00036438,14]
[359953344,1746445868419,-400.0,0.00036438,14]
[359953346,1746445868428,-280.65170628,0.00036438,14]
[359953348,1746445868438,-458.16,0.00036438,14]
[359953350,1746445868448,-400.0,0.00036438,14]
[359953352,1746445868458,-526.22,0.00036438,14]
[359953354,1746445868467,-1935.8,0.00036438,14]
[359953356,1746445868476,-400.0,0.00036438,14]
[359953358,1746445868485,-3791.83,0.00036438,14]
[359953360,1746445868495,-400.0,0.00036438,14]
[359953362,1746445868504,-400.0,0.00036438,14]
[359953364,1746445868513,-1411.13,0.00036438,14]
[359953366,1746445868522,-400.0,0.00036438,14]
[359953368,1746445868533,-568.68,0.00036438,14]
[359953370,1746445868543,-400.0,0.00036438,14]
[359953372,1746445868553,-400.0,0.00036438,14]
[359953374,1746445868564,-1696.48,0.00036438,14]
[359953376,1746445868574,-1459.98,0.00036438,14]
[359953378,1746445868583,-1182.54,0.00036438,14]
[359953380,1746445868593,-400.0,0.00036438,14]
[359953382,1746445868603,-833.33,0.00036438,14]
[359953384,1746445868613,-2159.19,0.00036438,14]
[359953386,1746445868623,-1525.71,0.00036438,14]
[359953388,1746445868632,-530.69,0.00036438,14]
[359953390,1746445868643,-400.0,0.00036438,14]
[359953392,1746445868653,-400.0,0.00036438,14]
[359953394,1746445868663,-466.42,0.00036438,14]
[359953396,1746445868674,-400.0,0.00036438,14]
[359953398,1746445868684,-400.0,0.00036438,14]
[359953400,1746445868695,-400.0,0.00036438,14]
[359953402,1746445868705,-944.17,0.00036438,14]
[359953404,1746445868714,-400.0,0.00036438,14]
[359953406,1746445868724,-604.59,0.00036438,14]
[359953407,1746445868733,-400.0,0.00036438,14]
[359953409,1746445868742,-400.0,0.00036438,14]
[359953411,1746445868751,-2779.93,0.00036438,14]
[359953414,1746445868763,-400.0,0.00036438,14]
[359953416,1746445868773,-921.3,0.00036438,14]
[359953418,1746445868782,-1539.88,0.00036438,14]
[359953420,1746445868793,-400.0,0.00036438,14]
[359953422,1746445868802,-442.4157804,0.00036438,14]
[359953424,1746445868812,-1217.85,0.00036438,14]
[359953426,1746445868821,-4454.88,0.00036438,14]
[359953428,1746445868831,-401.7,0.00036438,14]
[359953430,1746445868841,-1152.62,0.00036438,14]
[359953431,1746445868850,-400.0,0.00036438,14]
[359953434,1746445868860,-400.0,0.00036438,14]
[359953436,1746445868870,-400.0,0.00036438,14]
[359953438,1746445868880,-1231.44,0.00036438,14]
[359953440,1746445868890,-400.0,0.00036438,14]
[359953442,1746445868899,-2071.13,0.00036438,14]
[359953444,1746445868909,-2310.8,0.00036438,14]
[359953446,1746445868918,-446.19,0.00036438,14]
[359953448,1746445868928,-506.19,0.00036438,14]
[359953450,1746445868938,-400.0,0.00036438,14]
[359953452,1746445868949,-1850.89,0.00036438,14]
[359953454,1746445868959,-400.0,0.00036438,14]
[359953456,1746445868969,-945.45,0.00036438,14]
[359953458,1746445868981,-564.65,0.00036438,14]
[359953460,1746445868990,-443.25,0.00036438,14]
[359953462,1746445869000,-4805.41,0.00036438,14]
[359953464,1746445869010,-400.0,0.00036438,14]
[359953466,1746445869019,-400.0,0.00036438,14]
[359953468,1746445869029,-404.24,0.00036438,14]
[359953470,1746445869038,-400.0,0.00036438,14]
[359953472,1746445869048,-400.0,0.00036438,14]
[359953474,1746445869058,-400.0,0.00036438,14]
[359953476,1746445869067,-400.0,0.00036438,14]
[359953478,1746445869078,-400.0,0.00036438,14]
[359953480,1746445869088,-400.0,0.00036438,14]
[359953483,1746445869099,-400.0,0.00036438,14]
[359953485,1746445869112,-400.0,0.00036438,14]
[359953486,1746445869122,-400.0,0.00036438,14]
[359953489,1746445869132,-1812.36,0.00036438,14]
[359953490,1746445869141,-400.0,0.00036438,14]
[359953492,1746445869151,-400.0,0.00036438,14]
[359953495,1746445869161,-29855.5,0.00036438,14]
[359953496,1746445869170,-400.0,0.00036438,14]
[359953498,1746445869180,-1426.81,0.00036438,14]
[359953500,1746445869189,-400.0,0.00036438,14]
[359953502,1746445869198,-400.0,0.00036438,14]
[359953504,1746445869208,-427.08717671,0.00036438,14]
[359953506,1746445869217,-400.0,0.00036438,14]
[359953508,1746445869227,-1741.294766,0.00036438,2]
[359953510,1746445869237,-1741.294766,0.00036438,2]
[359953512,1746445869247,-400.0,0.00036438,14]
[359953523,1746445869336,-400.0,0.00036438,14]
[359953525,1746445869346,-407.88337944,0.00036438,14]
[359953527,1746445869358,-855.38,0.00036438,14]
[359953529,1746445869367,-1741.294766,0.00036438,2]
[359953531,1746445869376,-1741.294766,0.00036438,2]
[359953532,1746445869386,-400.0,0.00036438,14]
[359953534,1746445869395,-2479.52,0.00036438,14]
[359953536,1746445869405,-400.0,0.00036438,14]
[359953538,1746445869414,-400.0,0.00036438,14]
[359953540,1746445869424,-400.0,0.00036438,14]
[359953543,1746445869435,-400.0,0.00036438,14]
[359953544,1746445869445,-407.65084014,0.00036438,14]
[359953546,1746445869454,-1796.47,0.00036438,14]
[359953548,1746445869464,-400.0,0.00036438,14]
[359953550,1746445869473,-1141.43,0.00036438,14]
[359953552,1746445869483,-400.0,0.00036438,14]
[359953554,1746445869493,-447.17,0.00036438,14]
[359953556,1746445869502,-2955.02,0.00036438,14]
[359953558,1746445869511,-404.70926043,0.00036438,14]
[359953560,1746445869521,-400.0,0.00036438,14]
[359953562,1746445869530,-400.0,0.00036438,14]
[359953563,1746445869540,-7976.56,0.00036438,14]
[359953564,1746445869549,-12535.79,0.00036438,14]
[359953565,1746445869558,-400.0,0.00036438,14]
[359953566,1746445869568,-400.0,0.00036438,14]
[359953567,1746445869578,-524.37,0.00036438,14]
[359953568,1746445869587,-526.88,0.00036438,14]
[359953569,1746445869596,-406.86,0.00036438,2]
[359953570,1746445869606,-400.0,0.00036438,14]
[359953571,1746445869615,-400.0,0.00036438,14]
[359953572,1746445869624,-5000.0,0.00036465,2]
[359953573,1746445869633,-317.3075416,0.00036493,30]
[359953575,1746445869643,-235.2320706,0.00036493,30]
[359953577,1746445869653,-157.6354191,0.00036493,30]
[359953579,1746445869662,-153.0,0.00036493,30]
[359953581,1746445869672,-157.6354191,0.00036493,30]
[359953583,1746445869681,-153.0,0.00036493,30]
[359953585,1746445869690,-157.6354191,0.00036493,30]
[359953587,1746445869700,-153.0,0.00036493,30]
[359953589,1746445869709,-151.648,0.00036536,2]
[359953591,1746445869718,-385.52385753,0.0003659,35]
[359953593,1746445869727,-1126.95,0.000366,30]
[359953595,1746445869736,-160.0,0.000366,51]
[359953598,1746445869746,-344.27777,0.000366,120]
[359953600,1746445869755,-1100.0,0.0003663,60]
[359953602,1746445869765,-160.0,0.00036646,5]
[359953604,1746445869774,-4360.27,0.000367,30]
[359953606,1746445869783,-1724.49,0.000367,7]
[359953608,1746445869792,-22577.24903303,0.00036712,2]
[359953609,1746445869802,-16608.10721351,0.00036712,3]
[359953610,1746445869811,-400.0,0.00036712,14]
[359953611,1746445869820,-400.0,0.00036712,14]
[359953612,1746445869830,-400.0,0.00036712,14]
[359953613,1746445869839,-400.0,0.00036712,14]
[359953614,1746445869848,-464.38806564,0.00036712,14]
[359953615,1746445869857,-506.25626387,0.00036712,14]
[359953616,1746445869866,-400.0,0.00036712,14]
[359953617,1746445869876,-400.0,0.00036712,14]
[359953618,1746445869885,-400.0,0.00036712,14]
[359953619,1746445869894,-400.0,0.00036712,14]
[359953620,1746445869903,-400.0,0.00036712,14]
[359953621,1746445869916,-400.0,0.00036712,14]
[359953622,1746445869947,-400.0,0.00036712,14]
[359953623,1746445869971,-400.0,0.00036712,14]
[359953624,1746445869994,-400.0,0.00036712,14]
[359953625,1746445870017,-400.0,0.00036712,14]
[359953628,1746445870038,-400.0,0.00036712,14]
[359953629,1746445870062,-400.0,0.00036712,14]
[359953630,1746445870080,-400.0,0.00036712,14]
[359953631,1746445870095,-752.32,0.00036712,14]
[359953632,1746445870115,-400.0,0.00036712,14]
[359953634,1746445870136,-400.0,0.00036712,14]
[359953635,1746445870153,-400.0,0.00036712,14]
[359953636,1746445870169,-400.0,0.00036712,14]
[359953637,1746445870187,-919.64,0.00036712,14]
[359953638,1746445870204,-400.0,0.00036712,14]
[359953639,1746445870218,-525.46364915,0.00036712,14]
[359953640,1746445870234,-400.0,0.00036712,14]
[359953641,1746445870254,-424.76346582,0.00036712,14]
[359953642,1746445870273,-400.0,0.00036712,14]
[359953643,1746445870291,-400.0,0.00036712,14]
[359953644,1746445870307,-400.0,0.00036712,14]
[359953645,1746445870322,-400.0,0.00036712,14]
[359953646,1746445870338,-151.70921044,0.00036712,14]
[359953647,1746445870354,-400.0,0.00036712,14]
[359953648,1746445870371,-400.0,0.00036712,14]
[359953649,1746445870387,-400.0,0.00036712,14]
[359953650,1746445870400,-400.0,0.00036712,14]
[359953652,1746445870414,-400.0,0.00036712,14]
[359953654,1746445870429,-744.69,0.00036712,14]
[359953657,1746445870444,-206.54324648,0.00036712,14]
[359953660,1746445870458,-1440.06,0.00036712,14]
[359953663,1746445870479,-400.0,0.00036712,14]
[359953666,1746445870498,-400.0,0.00036712,14]
[359953669,1746445870515,-400.0,0.00036712,14]
[359953672,1746445870531,-400.0,0.00036712,14]
[359953674,1746445870547,-331.124905,0.00036712,14]
[359953677,1746445870562,-459.61,0.00036712,14]
[359953680,1746445870578,-400.0,0.00036712,14]
[359953682,1746445870593,-400.0,0.00036712,14]
[359953685,1746445870604,-400.0,0.00036712,14]
[359953686,1746445870614,-1757.66,0.00036712,14]
[359953689,1746445870624,-400.0,0.00036712,14]
[359953691,1746445870633,-973.01,0.00036712,14]
[359953693,1746445870643,-202.21434323,0.00036712,14]
[359953695,1746445870652,-400.0,0.00036712,14]
[359953697,1746445870661,-400.0,0.00036712,14]
[359953699,1746445870672,-400.0,0.00036712,14]
[359953701,1746445870681,-400.0,0.00036712,14]
[359953703,1746445870691,-400.0,0.00036712,14]
[359953705,1746445870701,-400.0,0.00036712,14]
[359953707,1746445870709,-400.0,0.00036712,14]
[359953709,1746445870719,-331.09808312,0.00036712,14]
[359953711,1746445870728,-595.45,0.00036712,14]
[359953713,1746445870737,-423.48940489,0.00036712,14]
[359953715,1746445870746,-400.0,0.00036712,14]
[359953717,1746445870756,-400.0,0.00036712,14]
[359953719,1746445870766,-1163.63,0.00036712,14]
[359953721,1746445870775,-931.15,0.00036712,14]
[359953723,1746445870789,-400.0,0.00036712,14]
[359953725,1746445870798,-424.79,0.00036712,14]
[359953727,1746445870808,-754.93,0.00036712,14]
[359953741,1746445871025,-467.51439622,0.00036712,14]
[359953744,1746445871046,-400.0,0.00036712,14]
[359953747,1746445871060,-400.0,0.00036712,14]
[359953749,1746445871070,-435.98,0.00036712,14]
[359953751,1746445871079,-467.97,0.00036712,14]
[359953753,1746445871088,-534.36,0.00036712,14]
[359953755,1746445871099,-400.0,0.00036712,14]
[359953757,1746445871109,-400.0,0.00036712,14]
[359953759,1746445871120,-444.20134006,0.00036712,14]
[359953761,1746445871129,-400.0,0.00036712,14]
[359953763,1746445871139,-1416.56,0.00036712,14]
[359953765,1746445871148,-400.0,0.00036712,14]
[359953767,1746445871158,-788.17,0.00036712,14]
[359953769,1746445871167,-500.0,0.00036712,14]
[359953771,1746445871176,-400.0,0.00036712,14]
[359953773,1746445871186,-400.0,0.00036712,14]
[359953775,1746445871195,-495.62,0.00036712,14]
[359953777,1746445871204,-400.0,0.00036712,14]
[359953779,1746445871214,-581.17,0.00036712,14]
[359953781,1746445871224,-400.0,0.00036712,14]
[359953783,1746445871233,-2750.33,0.00036712,14]
[359953785,1746445871244,-400.0,0.00036712,14]
[359953787,1746445871253,-400.0,0.00036712,14]
[359953789,1746445871262,-2105.55,0.00036712,14]
[359953791,1746445871272,-587.49,0.00036712,14]
[359953793,1746445871281,-400.0,0.00036712,14]
[359953795,1746445871290,-666.63,0.00036712,14]
[359953797,1746445871299,-400.0,0.00036712,14]
[359953799,1746445871309,-400.0,0.00036712,14]
[359953801,1746445871318,-236.15929592,0.00036712,14]
[359953802,1746445871327,-400.0,0.00036712,14]
[359953804,1746445871337,-179.31194484,0.00036712,14]
[359953807,1746445871347,-3426.74,0.00036712,14]
[359953809,1746445871358,-400.0,0.00036712,14]
[359953811,1746445871368,-400.0,0.00036712,14]
[359953813,1746445871377,-400.0,0.00036712,14]
[359953815,1746445871386,-400.0,0.00036712,14]
[359953816,1746445871396,-400.0,0.00036712,14]
[359953819,1746445871406,-400.0,0.00036712,14]
[359953821,1746445871415,-400.0,0.00036712,14]
[359953822,1746445871425,-630.31,0.00036712,14]
[359953824,1746445871435,-400.0,0.00036712,14]
[359953827,1746445871446,-862.54,0.00036712,14]
[359953829,1746445871455,-400.0,0.00036712,14]
[359953831,1746445871464,-400.0,0.00036712,14]
[359953833,1746445871473,-400.0,0.00036712,14]
[359953835,1746445871483,-433.25,0.00036712,14]
[359953837,1746445871492,-400.0,0.00036712,14]
[359953839,1746445871501,-400.0,0.00036712,14]
[359953841,1746445871510,-400.0,0.00036712,14]
[359953843,1746445871520,-400.0,0.00036712,14]
[359953845,1746445871529,-422.52892672,0.00036712,14]
[359953847,1746445871539,-487.78,0.00036712,14]
[359953849,1746445871549,-400.0,0.00036712,14]
[359953851,1746445871558,-400.0,0.00036712,14]
[359953853,1746445871568,-358.0,0.00036712,14]
[359953855,1746445871578,-445.34,0.00036712,14]
[359953857,1746445871587,-400.0,0.00036712,14]
[359953859,1746445871597,-1330.63465208,0.00036712,34]
[359953861,1746445871607,-810.48,0.00036712,14]
[359953863,1746445871617,-400.0,0.00036712,14]
[359953865,1746445871626,-1328.47,0.00036712,14]
[359953867,1746445871635,-552.28,0.00036712,14]
[359953869,1746445871644,-400.0,0.00036712,14]
[359953871,1746445871654,-400.0,0.00036712,14]
[359953873,1746445871663,-991.14,0.00036712,14]
[359953875,1746445871672,-400.0,0.00036712,14]
[359953877,1746445871681,-1713.06,0.00036712,14]
[359953879,1746445871691,-452.4,0.00036712,14]
[359953881,1746445871700,-407.99,0.00036712,14]
[359953883,1746445871709,-741.51,0.00036712,14]
[359953885,1746445871718,-400.0,0.00036712,14]
[359953887,1746445871728,-904.9,0.00036712,14]
[359953889,1746445871738,-400.0,0.00036712,14]
[359953891,1746445871748,-400.0,0.00036712,14]
[359953893,1746445871761,-400.0,0.00036712,14]
[359953895,1746445871770,-400.0,0.00036712,14]
[359953897,1746445871779,-400.0,0.00036712,14]
[359953899,1746445871789,-400.0,0.00036712,14]
[359953901,1746445871798,-400.0,0.00036712,14]
[359953903,1746445871808,-461.76,0.00036712,14]
[359953905,1746445871818,-400.0,0.00036712,14]
[359953907,1746445871828,-400.0,0.00036712,14]
[359953909,1746445871837,-400.0,0.00036712,14]
[359953911,1746445871846,-400.0,0.00036712,14]
[359953913,1746445871855,-400.0,0.00036712,14]
[359953915,1746445871864,-400.0,0.00036712,14]
[359953917,1746445871874,-400.0,0.00036712,14]
[359953919,1746445871884,-400.0,0.00036712,14]
[359953921,1746445871894,-400.0,0.00036712,14]
[359953923,1746445871903,-859.63,0.00036712,14]
[359953925,1746445871912,-150.26349705,0.00036712,14]
[359953927,1746445871921,-400.0,0.00036712,14]
[359953929,1746445871930,-400.0,0.00036712,14]
[359953931,1746445871940,-400.0,0.00036712,14]
[359953933,1746445871949,-400.0,0.00036712,14]
[359953935,1746445871958,-1047.07,0.00036712,14]
[359953937,1746445871967,-400.0,0.00036712,14]
[359953939,1746445871976,-459.52,0.00036712,14]
[359953941,1746445871985,-440.38,0.00036712,14]
[359953943,1746445871995,-400.0,0.00036712,14]
[359953945,1746445872004,-847.52,0.00036712,14]
[359953947,1746445872013,-400.0,0.00036712,14]
[359953948,1746445872022,-482.5,0.00036712,14]
[359953951,1746445872033,-584.75,0.00036712,14]
[359953953,1746445872043,-2778.11,0.00036712,2]
[359953955,1746445872052,-471.15,0.00036712,14]
[359953957,1746445872062,-622.12,0.00036712,14]
[359953958,1746445872071,-547.45,0.00036712,14]
[359953960,1746445872080,-2823.51,0.00036712,14]
[359953962,1746445872090,-400.0,0.00036712,14]
[359953965,1746445872099,-400.0,0.00036712,14]
[359953967,1746445872109,-400.0,0.00036712,14]
[359953969,1746445872118,-400.0,0.00036712,14]
[359953971,1746445872127,-792.06,0.00036712,14]
[359953973,1746445872136,-594.03,0.00036712,14]
[359953975,1746445872146,-480.93,0.00036712,14]
[359953977,1746445872155,-400.0,0.00036712,14]
[359953979,1746445872165,-400.0,0.00036712,14]
[359953981,1746445872175,-2548.32,0.00036712,14]
[359953983,1746445872184,-9551.19,0.00036712,14]
[359953985,1746445872193,-677.11,0.00036712,14]
[359953987,1746445872202,-203.27915131,0.00036712,14]
[359953989,1746445872212,-400.0,0.00036712,14]
[359953991,1746445872222,-400.0,0.00036712,14]
[359953993,1746445872231,-400.0,0.00036712,14]
[359953995,1746445872241,-400.0,0.00036712,14]
[359953997,1746445872251,-400.0,0.00036712,14]
[359953999,1746445872260,-400.0,0.00036712,14]
[359954001,1746445872270,-3529.4,0.00036712,14]
[359954002,1746445872280,-413.35129827,0.00036712,14]
[359954003,1746445872289,-400.0,0.00036712,14]
[359954004,1746445872298,-400.0,0.00036712,14]
[359954005,1746445872307,-400.0,0.00036712,14]
[359954006,1746445872316,-400.0,0.00036712,14]
[359954007,1746445872325,-3496.52,0.00036712,14]
[359954008,1746445872335,-2182.36,0.00036712,14]
[359954009,1746445872344,-1611.18,0.00036712,14]
[359954010,1746445872353,-2637.47,0.00036712,14]
[359954012,1746445872365,-400.0,0.00036712,14]
[359954014,1746445872376,-400.0,0.00036712,14]
[359954016,1746445872386,-400.0,0.00036712,14]
[359954018,1746445872395,-458.16,0.00036712,14]
[359954020,1746445872406,-526.22,0.00036712,14]
[359954022,1746445872416,-1935.8,0.00036712,14]
[359954024,1746445872425,-400.0,0.00036712,14]
[359954027,1746445872435,-3791.83,0.00036712,14]
[359954028,1746445872445,-415.63924941,0.00036712,14]
[359954030,1746445872454,-438.00800792,0.00036712,14]
[359954033,1746445872464,-1411.13,0.00036712,14]
[359954035,1746445872474,-400.0,0.00036712,14]
[359954037,1746445872483,-568.68,0.00036712,14]
[359954039,1746445872493,-400.0,0.00036712,14]
[359954041,1746445872503,-400.0,0.00036712,14]
[359954043,1746445872512,-1696.48,0.00036712,14]
[359954045,1746445872522,-1459.98,0.00036712,14]
[359954047,1746445872532,-1182.54,0.00036712,14]
[359954049,1746445872541,-400.0,0.00036712,14]
[359954051,1746445872551,-833.33,0.00036712,14]
[359954053,1746445872560,-2159.19,0.00036712,14]
[359954055,1746445872570,-1525.71,0.00036712,14]
[359954057,1746445872579,-530.69,0.00036712,14]
[359954059,1746445872588,-400.0,0.00036712,14]
[359954061,1746445872598,-400.0,0.00036712,14]
[359954063,1746445872607,-466.42,0.00036712,14]
[359954065,1746445872617,-400.0,0.00036712,14]
[359954067,1746445872626,-400.0,0.00036712,14]
[359954069,1746445872635,-400.0,0.00036712,14]
[359954071,1746445872645,-944.17,0.00036712,14]
[359954073,1746445872654,-400.0,0.00036712,14]
[359954075,1746445872663,-604.59,0.00036712,14]
[359954077,1746445872672,-400.0,0.00036712,14]
[359954079,1746445872682,-400.0,0.00036712,14]
[359954081,1746445872692,-2779.93,0.00036712,14]
[359954083,1746445872701,-500.0,0.00036712,14]
[359954085,1746445872710,-921.3,0.00036712,14]
[359954087,1746445872720,-1539.88,0.00036712,14]
[359954089,1746445872729,-400.0,0.00036712,14]
[359954091,1746445872738,-1217.85,0.00036712,14]
[359954093,1746445872747,-4454.88,0.00036712,14]
[359954095,1746445872757,-401.7,0.00036712,14]
[359954097,1746445872766,-1152.62,0.00036712,14]
[359954099,1746445872774,-400.0,0.00036712,14]
[359954101,1746445872784,-400.0,0.00036712,14]
[359954103,1746445872793,-400.0,0.00036712,14]
[359954105,1746445872802,-1231.44,0.00036712,14]
[359954107,1746445872812,-400.0,0.00036712,14]
[359954109,1746445872821,-2071.13,0.00036712,14]
[359954111,1746445872830,-2310.8,0.00036712,14]
[359954113,1746445872840,-446.19,0.00036712,14]
[359954115,1746445872849,-506.19,0.00036712,14]
[359954117,1746445872858,-400.0,0.00036712,14]
[359954119,1746445872867,-1850.89,0.00036712,14]
[359954121,1746445872876,-386.9315838,0.00036712,14]
[359954123,1746445872886,-945.45,0.00036712,14]
[359954125,1746445872895,-564.65,0.00036712,14]
[359954127,1746445872904,-443.25,0.00036712,14]